[Event "Fagernes Chess GM-Swiss 2025"]
[Site "Fagernes"]
[Date "2025.04.16"]
[Round "5.16"]
[White "Melaa, Sondre"]
[Black "Olsen, William Alexander"]
[Result "1-0"]
[Annotator "RC"]
[ECO "A20"]
[WhiteElo "2344"]
[BlackElo "2188"]
[PlyCount "151"]
[EventDate "2025.04.12"]
[EventCountry "NOR"]
[SourceTitle "playchess.com"]
[Source "ChessBase"]
[SourceQuality "1"]
[TimeControl "40/6000+30:2400+30"]

1. c4 {[%emt 0:02:40]} e5 {[%emt 0:00:06]} 2. g3 {[%emt 0:00:36]} Nf6 {[%emt 0:00:06]} 3. Bg2 {[%emt 0:00:09]} h6 {[%emt 0:00:06]} 4. Nf3 {[%emt 0:00:37]} e4 {[%emt 0:00:12]} 5. Nd4 {[%emt 0:00:31]} d5 {[%emt 0:00:05]} 6. cxd5 {[%emt 0:01:27]} Qxd5 {[%emt 0:00:06]} 7. e3 {[%emt 0:07:06]} c5 {[%emt 0:00:09]} 8. Nc3 {[%emt 0:06:43]} Qd8 {[%emt 0:00:10]} 9. Nde2 {[%emt 0:07:40]} Bf5 {[%emt 0:00:12]} 10. O-O {[%emt 0:08:43]} Nc6 {[%emt 0:00:13]} 11. Qa4 {[%emt 0:02:59]} Qa5 {[%emt 0:00:11]} 12. Qxa5 {[%emt 0:10:26]} Nxa5 {[%emt 0:00:33]} 13. h3 {[%emt 0:00:29]} Bd6 {[%emt 0:05:50]} 14. g4 {[%emt 0:02:26]} Bh7 {[%emt 0:01:13]} 15. b3 {[%emt 0:08:39]} O-O {[%emt 0:07:57]} 16. Bb2 {[%emt 0:04:21]} Rfd8 {[%emt 0:05:15]} 17. Rad1 {[%emt 0:08:58]} Rd7 {[%emt 0:22:00]} 18. Na4 {[%emt 0:04:42]} Nd5 {[%emt 0:11:44]} 19. Nec3 {[%emt 0:05:01]} Nxc3 {[%emt 0:02:17]} 20. Nxc3 {[%emt 0:14:39]} Re8 {[%emt 0:06:06]} 21. Rc1 {[%emt 0:09:13]} c4 {[%emt 0:03:35]} 22. Nb5 {[%emt 0:01:02]} cxb3 {[%emt 0:04:35]} 23. Bc3 {[%emt 0:00:36]} b6 {[%emt 0:08:58]} 24. Bxa5 {[%emt 0:00:33]} bxa5 {[%emt 0:00:05]} 25. Nxd6 {[%emt 0:00:37]} Rxd6 {[%emt 0:00:05]} 26. axb3 {[%emt 0:00:04]} Rxd2 {[%emt 0:02:40]} 27. Rc7 {[%emt 0:00:53]} Rb2 {[%emt 0:00:20]} 28. Ra1 {[%emt 0:00:19]} Rxb3 {[%emt 0:00:30]} 29. Rxa5 {[%emt 0:00:07]} Bg6 {[%emt 0:00:27]} 30. Raxa7 {[%emt 0:00:25]} h5 {[%emt 0:00:35]} 31. Bf1 {[%emt 0:00:37]} hxg4 {[%emt 0:02:54]} 32. hxg4 {[%emt 0:00:07]} Rbb8 {[%emt 0:00:27]} 33. Bc4 {[%emt 0:00:30]} Rf8 {[%emt 0:00:05]} 34. Re7 {[%emt 0:00:46]} Ra8 {[%emt 0:02:20]} 35. Bxf7+ {[%emt 0:00:24]} Bxf7 {[%emt 0:01:43]} 36. Rxf7 {[%emt 0:00:06]} Rxa7 {[%emt 0:00:51]} 37. Rxa7 {[%emt 0:00:06]} Re8 {[%emt 0:00:22]} 38. Kg2 {[%emt 0:00:34]} Kh7 {[%emt 0:00:00]} 39. Kg3 {[%emt 0:00:08]} Kh6 {[%emt 0:00:32]} 40. Ra5 {[%emt 0:00:40]} g6 {[%emt 0:00:42]} 41. Kh4 {[%emt 0:41:26]} Re7 {[%emt 0:41:06]} 42. g5+ {[%emt 0:00:00]} Kg7 {[%emt 0:00:00]} 43. Kg3 {[%emt 0:00:00]} Kh7 {[%emt 0:00:00]} 44. Ra6 {[%emt 0:00:00]} Re5 {[%emt 0:00:00]} 45. Kg4 {[%emt 0:00:00]} Kg7 {[%emt 0:00:00]} 46. Rf6 {[%emt 0:00:00]} Re8 {[%emt 0:00:00]} 47. Kf4 {[%emt 0:00:00]} Re7 {[%emt 0:00:00]} 48. Rd6 {[%emt 0:00:00]} Rf7+ {[%emt 0:00:00]} 49. Kxe4 {[%emt 0:00:00]} Rxf2 {[%emt 0:00:00]} 50. Rd5 {[%emt 0:00:00]} Kf7 {[%emt 0:00:00]} 51. Ke5 {[%emt 0:00:00]} Ke7 {[%emt 0:00:00]} 52. Rc5 {[%emt 0:00:00]} Rf5+ {[%emt 0:00:00]} 53. Kd4 {[%emt 0:00:00]} Rf1 {[%emt 0:00:00]} 54. Re5+ {[%emt 0:00:00]} Kf7 {[%emt 0:00:00]} 55. Re4 {[%emt 0:00:00]} Rg1 {[%emt 0:00:00]} 56. Re5 {[%emt 0:00:00]} Ra1 {[%emt 0:00:00]} 57. Kd5 {[%emt 0:00:00]} Ra5+ {[%emt 0:00:00]} 58. Ke4 {[%emt 0:00:00]} Ra1 {[%emt 0:00:00]} 59. Rb5 {[%emt 0:00:00]} Rg1 {[%emt 0:00:00]} 60. Re5 {[%emt 0:01:42]} Ra1 {[%emt 0:00:00]} 61. Rc5 {[%emt 0:00:38]} Rg1 {[%emt 0:00:00]} 62. Kf4 {[%emt 0:00:29]} Rf1+ {[%emt 0:00:00]} 63. Ke5 {[%emt 0:01:15]} Rf5+ {[%emt 0:00:00]} 64. Kd6 {[%emt 0:00:15]} Rf3 {[%emt 0:00:00]} 65. Rc7+ {[%emt 0:01:54]} Kf8 {[%emt 0:00:00]} 66. e4 {[%emt 0:00:17]} Rg3 {[%emt 0:08:20]} 67. e5 {[%emt 0:02:19]} Rd3+ {[%emt 0:03:39]} 68. Ke6 {[%emt 0:00:18]} Rf3 {[%emt 0:00:12]} 69. Rc6 {[%emt 0:03:07]} Kg7 {[%emt 0:01:44]} 70. Kd7 {[%emt 0:01:29]} Rf5 {[%emt 0:15:30]} 71. e6 {[%emt 0:00:28]} Rd5+ {[%emt 0:00:04]} 72. Rd6 {[%emt 0:00:22]} Ra5 {[%emt 0:00:26]} 73. e7 {[%emt 0:00:14]} Ra7+ {[%emt 0:00:14]} 74. Ke6 {[%emt 0:00:12]} Ra8 {[%emt 0:00:04]} 75. Rd8 {[%emt 0:00:11]} Ra6+ {[%emt 0:00:04]} 76. Kd5 {[%emt 0:00:09]} 1-0

[Event "Fagernes Chess GM-Swiss 2025"]
[Site "Fagernes"]
[Date "2025.04.16"]
[Round "5.17"]
[White "Adharsh K"]
[Black "Kittilsen, Sigurd"]
[Result "1-0"]
[Annotator "RC"]
[ECO "B90"]
[WhiteElo "2317"]
[BlackElo "2010"]
[PlyCount "71"]
[EventDate "2025.04.12"]
[EventCountry "NOR"]
[SourceTitle "playchess.com"]
[Source "ChessBase"]
[SourceQuality "1"]
[TimeControl "40/6000+30:2400+30"]

1. e4 {[%emt 0:03:56]} c5 {[%emt 0:00:08]} 2. Nf3 {[%emt 0:00:42]} d6 {[%emt 0:00:12]} 3. d4 {[%emt 0:00:11]} cxd4 {[%emt 0:00:07]} 4. Nxd4 {[%emt 0:00:44]} Nf6 {[%emt 0:00:12]} 5. Nc3 {[%emt 0:00:07]} a6 {[%emt 0:00:12]} 6. Be3 {[%emt 0:00:21]} e5 {[%emt 0:00:18]} 7. Nb3 {[%emt 0:00:03]} Be6 {[%emt 0:00:14]} 8. f3 {[%emt 0:00:03]} Be7 {[%emt 0:00:24]} 9. Qd2 {[%emt 0:00:07]} h5 {[%emt 0:03:05]} 10. Nd5 {[%emt 0:06:00]} Nxd5 {[%emt 0:01:19]} 11. exd5 {[%emt 0:00:07]} Bf5 {[%emt 0:00:06]} 12. Be2 {[%emt 0:02:56]} Nd7 {[%emt 0:07:33]} 13. O-O {[%emt 0:00:26]} b5 {[%emt 0:07:23]} 14. a4 {[%emt 0:02:34]} O-O {[%emt 0:07:45]} 15. axb5 {[%emt 0:00:16]} axb5 {[%emt 0:00:50]} 16. Bxb5 {[%emt 0:00:09]} Qc7 {[%emt 0:01:49]} 17. Bc6 {[%emt 0:00:13]} Rxa1 {[%emt 0:03:48]} 18. Rxa1 {[%emt 0:00:01]} Nb6 {[%emt 0:00:41]} 19. Qa5 {[%emt 0:02:32]} Bd8 {[%emt 0:06:19]} 20. Bf2 {[%emt 0:04:17]} Bxc2 {[%emt 0:02:15]} 21. Qc3 {[%emt 0:00:44]} e4 {[%emt 0:24:08]} 22. Qxc2 {[%emt 0:03:35]} e3 {[%emt 0:00:52]} 23. Bxe3 {[%emt 0:01:32]} Nxd5 {[%emt 0:00:07]} 24. Bd2 {[%emt 0:00:35]} Bf6 {[%emt 0:07:49]} 25. Ra6 {[%emt 0:14:24]} Rb8 {[%emt 0:05:46]} 26. Qd3 {[%emt 0:03:35]} Ne7 {[%emt 0:05:14]} 27. Be4 {[%emt 0:15:43]} Bxb2 {[%emt 0:12:25]} 28. Qxd6 {[%emt 0:02:23]} Qxd6 {[%emt 0:01:35]} 29. Rxd6 {[%emt 0:00:07]} f5 {[%emt 0:02:59]} 30. Bd3 {[%emt 0:01:59]} Ba3 {[%emt 0:01:07]} 31. Ra6 {[%emt 0:00:36]} Bb2 {[%emt 0:02:40]} 32. Bg5 {[%emt 0:01:01]} Kf8 {[%emt 0:00:40]} 33. h4 {[%emt 0:03:55]} g6 {[%emt 0:02:03]} 34. Bc4 {[%emt 0:00:27]} Rc8 {[%emt 0:01:42]} 35. Be6 {[%emt 0:00:11]} Rc6 {[%emt 0:02:23]} 36. Bxe7+ {[%emt 0:00:10]} 1-0

[Event "Fagernes Chess GM-Swiss 2025"]
[Site "Fagernes"]
[Date "2025.04.16"]
[Round "5.18"]
[White "Pang, Ethan"]
[Black "Fiskaaen, Martin Holten"]
[Result "0-1"]
[Annotator "RC"]
[ECO "D02"]
[WhiteElo "2257"]
[BlackElo "2283"]
[PlyCount "94"]
[EventDate "2025.04.12"]
[EventCountry "NOR"]
[SourceTitle "playchess.com"]
[Source "ChessBase"]
[SourceQuality "1"]
[TimeControl "40/6000+30:2400+30"]

1. Nf3 {[%emt 0:12:34]} d5 {[%emt 0:01:15]} 2. g3 {[%emt 0:00:20]} Nd7 {[%emt 0:01:05]} 3. d4 {[%emt 0:03:26]} Nb6 {[%emt 0:00:30]} 4. Bg2 {[%emt 0:05:03]} Bf5 {[%emt 0:01:01]} 5. a4 {[%emt 0:03:23]} a5 {[%emt 0:00:35]} 6. b3 {[%emt 0:01:27]} e6 {[%emt 0:02:59]} 7. Ba3 {[%emt 0:03:13]} Bxa3 {[%emt 0:02:41]} 8. Nxa3 {[%emt 0:01:01]} h6 {[%emt 0:02:56]} 9. O-O {[%emt 0:01:51]} Nf6 {[%emt 0:00:23]} 10. Ne5 {[%emt 0:03:57]} O-O {[%emt 0:01:35]} 11. c4 {[%emt 0:03:18]} c6 {[%emt 0:01:36]} 12. e3 {[%emt 0:03:44]} Re8 {[%emt 0:01:32]} 13. f3 {[%emt 0:02:58]} Nbd7 {[%emt 0:02:25]} 14. cxd5 {[%emt 0:07:09]} exd5 {[%emt 0:01:39]} 15. f4 {[%emt 0:00:29]} Bh7 {[%emt 0:05:50]} 16. Nb1 {[%emt 0:02:14]} Ne4 {[%emt 0:01:18]} 17. Nd2 {[%emt 0:02:45]} Nd6 {[%emt 0:00:40]} 18. Bh3 {[%emt 0:05:07]} Nf6 {[%emt 0:02:07]} 19. Ndf3 {[%emt 0:07:06]} Nfe4 {[%emt 0:04:13]} 20. Nh4 {[%emt 0:01:51]} Qb6 {[%emt 0:07:21]} 21. Rc1 {[%emt 0:07:48]} Qc7 {[%emt 0:05:36]} 22. Rc2 {[%emt 0:07:08]} Qe7 {[%emt 0:01:15]} 23. Rg2 {[%emt 0:01:55]} Ra6 {[%emt 0:11:33]} 24. Bd7 {[%emt 0:08:14]} Rd8 {[%emt 0:01:32]} 25. Bg4 {[%emt 0:01:25]} Nf6 {[%emt 0:08:06]} 26. Bh3 {[%emt 0:03:14]} Raa8 {[%emt 0:02:23]} 27. g4 {[%emt 0:02:47]} Be4 {[%emt 0:09:44]} 28. Rgf2 {[%emt 0:03:07]} Nd7 {[%emt 0:02:43]} 29. Ng2 {[%emt 0:00:42]} f6 {[%emt 0:01:34]} 30. Nf3 {[%emt 0:02:14]} b5 {[%emt 0:09:53]} 31. axb5 {[%emt 0:00:55]} cxb5 {[%emt 0:00:29]} 32. g5 {[%emt 0:00:34]} hxg5 {[%emt 0:01:39]} 33. fxg5 {[%emt 0:00:49]} fxg5 {[%emt 0:00:29]} 34. Bxd7 {[%emt 0:00:37]} Rxd7 {[%emt 0:00:04]} 35. Ne5 {[%emt 0:00:06]} Rc7 {[%emt 0:00:09]} 36. Qh5 {[%emt 0:01:12]} a4 {[%emt 0:03:22]} 37. bxa4 {[%emt 0:00:08]} bxa4 {[%emt 0:00:28]} 38. h4 {[%emt 0:00:23]} Qe8 {[%emt 0:04:38]} 39. Qxg5 {[%emt 0:01:46]} a3 {[%emt 0:00:15]} 40. Nf4 {[%emt 0:00:42]} Nf7 {[%emt 0:10:03]} 41. Nxf7 {[%emt 0:02:35]} Qxf7 {[%emt 0:03:35]} 42. Ra1 {[%emt 0:01:21]} Rb7 {[%emt 0:10:30]} 43. h5 {[%emt 0:03:51]} Rb6 {[%emt 0:13:09]} 44. Kh2 {[%emt 0:04:59]} Qb7 {[%emt 0:01:48]} 45. h6 {[%emt 0:02:21]} Rxh6+ {[%emt 0:01:13]} 46. Kg3 {[%emt 0:00:12]} Qc7 {[%emt 0:01:55]} 47. Rfa2 {[%emt 0:00:40]} Rg6 {[%emt 0:01:23]} 0-1

[Event "Fagernes Chess GM-Swiss 2025"]
[Site "Fagernes"]
[Date "2025.04.16"]
[Round "5.19"]
[White "Khoo-Thwe, Louis"]
[Black "Hedman, Erik"]
[Result "1/2-1/2"]
[Annotator "RC"]
[ECO "B28"]
[WhiteElo "2118"]
[BlackElo "2276"]
[PlyCount "66"]
[EventDate "2025.04.12"]
[EventCountry "NOR"]
[SourceTitle "playchess.com"]
[Source "ChessBase"]
[SourceQuality "1"]
[TimeControl "40/6000+30:2400+30"]

1. e4 {[%emt 0:00:03]} c5 {[%emt 0:00:07]} 2. Nf3 {[%emt 0:00:06]} a6 {[%emt 0:00:03]} 3. d4 {[%emt 0:00:47]} cxd4 {[%emt 0:00:07]} 4. Nxd4 {[%emt 0:00:24]} e5 {[%emt 0:00:23]} 5. Ne2 {[%emt 0:02:38]} Nf6 {[%emt 0:06:36]} 6. Nbc3 {[%emt 0:00:32]} Bc5 {[%emt 0:00:31]} 7. Ng3 {[%emt 0:03:39]} d6 {[%emt 0:04:06]} 8. Be2 {[%emt 0:04:59]} O-O {[%emt 0:03:19]} 9. O-O {[%emt 0:03:11]} h6 {[%emt 0:06:52]} 10. Nd5 {[%emt 0:05:27]} Be6 {[%emt 0:02:13]} 11. c3 {[%emt 0:05:47]} Nxd5 {[%emt 0:01:57]} 12. exd5 {[%emt 0:00:09]} Bc8 {[%emt 0:00:26]} 13. Kh1 {[%emt 0:05:31]} f5 {[%emt 0:12:40]} 14. f4 {[%emt 0:01:15]} Nd7 {[%emt 0:00:57]} 15. Qc2 {[%emt 0:02:21]} e4 {[%emt 0:13:37]} 16. b4 {[%emt 0:01:53]} Bb6 {[%emt 0:01:39]} 17. Bb2 {[%emt 0:01:29]} Nf6 {[%emt 0:03:37]} 18. c4 {[%emt 0:02:11]} Qe7 {[%emt 0:00:47]} 19. Qb3 {[%emt 0:02:50]} Kh7 {[%emt 0:00:34]} 20. Rac1 {[%emt 0:03:11]} a5 {[%emt 0:02:11]} 21. c5 {[%emt 0:06:10]} dxc5 {[%emt 0:01:32]} 22. bxc5 {[%emt 0:00:08]} Ba7 {[%emt 0:03:35]} 23. Ba3 {[%emt 0:07:01]} Rd8 {[%emt 0:03:32]} 24. c6 {[%emt 0:07:55]} Qf7 {[%emt 0:01:05]} 25. c7 {[%emt 0:01:26]} Rxd5 {[%emt 0:00:59]} 26. Bc4 {[%emt 0:02:47]} b5 {[%emt 0:00:04]} 27. Bxb5 {[%emt 0:03:46]} Be6 {[%emt 0:06:20]} 28. Bc4 {[%emt 0:03:03]} Rc8 {[%emt 0:00:41]} 29. Bxd5 {[%emt 0:06:31]} Nxd5 {[%emt 0:01:22]} 30. Qb2 {[%emt 0:07:52]} Rxc7 {[%emt 0:07:19]} 31. Qe5 {[%emt 0:01:42]} Bb6 {[%emt 0:03:10]} 32. Rxc7 {[%emt 0:07:39]} Bxc7 {[%emt 0:02:35]} 33. Bd6 {[%emt 0:00:08]} Bd8 {[%emt 0:00:50]} 1/2-1/2

[Event "Fagernes Chess GM-Swiss 2025"]
[Site "Fagernes"]
[Date "2025.04.16"]
[Round "5.20"]
[White "Simonsen, David Mindestrommen"]
[Black "Blomqvist, Erik"]
[Result "0-1"]
[Annotator "RC"]
[ECO "C02"]
[WhiteElo "2034"]
[BlackElo "2475"]
[PlyCount "68"]
[EventDate "2025.04.12"]
[EventCountry "NOR"]
[SourceTitle "playchess.com"]
[Source "ChessBase"]
[SourceQuality "1"]
[TimeControl "40/6000+30:2400+30"]

1. e4 {[%emt 0:00:02]} e6 {[%emt 0:01:41]} 2. d4 {[%emt 0:01:14]} d5 {[%emt 0:00:06]} 3. e5 {[%emt 0:00:05]} c5 {[%emt 0:00:14]} 4. c3 {[%emt 0:00:05]} Nc6 {[%emt 0:00:09]} 5. Nf3 {[%emt 0:00:08]} Bd7 {[%emt 0:00:21]} 6. Be2 {[%emt 0:00:45]} Rc8 {[%emt 0:00:34]} 7. O-O {[%emt 0:00:52]} h6 {[%emt 0:00:21]} 8. a3 {[%emt 0:12:23]} Nge7 {[%emt 0:00:41]} 9. Be3 {[%emt 0:00:29]} Nf5 {[%emt 0:03:11]} 10. Nbd2 {[%emt 0:01:47]} cxd4 {[%emt 0:03:47]} 11. cxd4 {[%emt 0:00:51]} a5 {[%emt 0:07:00]} 12. Qb3 {[%emt 0:05:46]} a4 {[%emt 0:05:26]} 13. Qa2 {[%emt 0:11:09]} g5 {[%emt 0:01:52]} 14. h3 {[%emt 0:01:50]} Nxe3 {[%emt 0:06:03]} 15. fxe3 {[%emt 0:00:10]} h5 {[%emt 0:00:08]} 16. g4 {[%emt 0:07:30]} hxg4 {[%emt 0:07:20]} 17. hxg4 {[%emt 0:00:58]} f6 {[%emt 0:05:47]} 18. Bd3 {[%emt 0:04:35]} Qc7 {[%emt 0:08:32]} 19. Kg2 {[%emt 0:01:29]} Bg7 {[%emt 0:03:12]} 20. exf6 {[%emt 0:02:01]} Bxf6 {[%emt 0:00:11]} 21. Rh1 {[%emt 0:06:21]} Ke7 {[%emt 0:00:09]} 22. Rae1 {[%emt 0:00:58]} Rcg8 {[%emt 0:12:55]} 23. Rxh8 {[%emt 0:04:42]} Rxh8 {[%emt 0:00:06]} 24. Nf1 {[%emt 0:01:31]} Na5 {[%emt 0:05:25]} 25. Ng3 {[%emt 0:05:47]} Nb3 {[%emt 0:00:36]} 26. Qb1 {[%emt 0:00:55]} e5 {[%emt 0:01:26]} 27. e4 {[%emt 0:13:55]} Bxg4 {[%emt 0:00:24]} 28. Nxe5 {[%emt 0:07:41]} Bxe5 {[%emt 0:00:47]} 29. dxe5 {[%emt 0:00:10]} Nd2 {[%emt 0:02:58]} 30. Qc1 {[%emt 0:01:11]} Bf3+ {[%emt 0:00:11]} 31. Kf2 {[%emt 0:00:30]} Rh2+ {[%emt 0:00:35]} 32. Kg1 {[%emt 0:00:19]} Qb6+ {[%emt 0:00:40]} 33. Kxh2 {[%emt 0:00:21]} Qf2+ {[%emt 0:00:07]} 34. Kh3 {[%emt 0:00:05]} Qg2# {[%emt 0:00:06]} 0-1

[Event "Fagernes Chess GM-Swiss 2025"]
[Site "Fagernes"]
[Date "2025.04.16"]
[Round "5.21"]
[White "Gandrud, Vegar Koi"]
[Black "Hebbar, Eshaan"]
[Result "1/2-1/2"]
[Annotator "RC"]
[ECO "D17"]
[WhiteElo "2273"]
[BlackElo "2175"]
[PlyCount "173"]
[EventDate "2025.04.12"]
[EventCountry "NOR"]
[SourceTitle "playchess.com"]
[Source "ChessBase"]
[SourceQuality "1"]
[TimeControl "40/6000+30:2400+30"]

1. d4 {[%emt 0:03:25]} d5 {[%emt 0:00:10]} 2. c4 {[%emt 0:00:10]} c6 {[%emt 0:00:05]} 3. Nf3 {[%emt 0:00:10]} Nf6 {[%emt 0:00:11]} 4. Nc3 {[%emt 0:00:10]} dxc4 {[%emt 0:00:08]} 5. a4 {[%emt 0:00:08]} Bf5 {[%emt 0:00:05]} 6. Ne5 {[%emt 0:00:39]} Nbd7 {[%emt 0:00:16]} 7. Nxc4 {[%emt 0:00:14]} Qc7 {[%emt 0:00:09]} 8. g3 {[%emt 0:00:37]} e5 {[%emt 0:00:11]} 9. dxe5 {[%emt 0:00:47]} Nxe5 {[%emt 0:00:09]} 10. Bf4 {[%emt 0:00:10]} Nfd7 {[%emt 0:00:07]} 11. Bg2 {[%emt 0:01:57]} g5 {[%emt 0:01:08]} 12. Ne3 {[%emt 0:00:13]} gxf4 {[%emt 0:00:16]} 13. Nxf5 {[%emt 0:00:06]} fxg3 {[%emt 0:00:36]} 14. hxg3 {[%emt 0:01:04]} O-O-O {[%emt 0:00:17]} 15. O-O {[%emt 0:01:18]} Kb8 {[%emt 0:01:08]} 16. Qc2 {[%emt 0:03:15]} h5 {[%emt 0:00:55]} 17. Ne4 {[%emt 0:05:31]} Ng6 {[%emt 0:05:29]} 18. Rfd1 {[%emt 0:12:58]} h4 {[%emt 0:05:27]} 19. e3 {[%emt 0:01:56]} hxg3 {[%emt 0:09:17]} 20. Nexg3 {[%emt 0:02:10]} Be7 {[%emt 0:06:16]} 21. Nxe7 {[%emt 0:03:59]} Nxe7 {[%emt 0:00:04]} 22. b4 {[%emt 0:00:15]} Ne5 {[%emt 0:04:35]} 23. Rxd8+ {[%emt 0:42:23]} Rxd8 {[%emt 0:00:09]} 24. Rd1 {[%emt 0:00:22]} Rg8 {[%emt 0:02:07]} 25. Qh7 {[%emt 0:03:47]} a6 {[%emt 0:05:59]} 26. b5 {[%emt 0:05:38]} cxb5 {[%emt 0:10:29]} 27. axb5 {[%emt 0:00:01]} axb5 {[%emt 0:00:44]} 28. Qb1 {[%emt 0:02:07]} Qc4 {[%emt 0:10:54]} 29. Rd4 {[%emt 0:01:31]} Qc7 {[%emt 0:14:23]} 30. Rb4 {[%emt 0:01:55]} N7c6 {[%emt 0:01:52]} 31. Rxb5 {[%emt 0:00:17]} Ng4 {[%emt 0:00:11]} 32. Qe4 {[%emt 0:08:14]} Nd8 {[%emt 0:00:45]} 33. Qf4 {[%emt 0:01:35]} Rg6 {[%emt 0:01:37]} 34. Qxc7+ {[%emt 0:01:24]} Kxc7 {[%emt 0:00:02]} 35. Be4 {[%emt 0:00:49]} Rd6 {[%emt 0:02:53]} 36. Nf5 {[%emt 0:03:19]} Rd1+ {[%emt 0:04:17]} 37. Kg2 {[%emt 0:00:08]} Rd2 {[%emt 0:00:15]} 38. Rc5+ {[%emt 0:00:12]} Kd7 {[%emt 0:01:42]} 39. Rd5+ {[%emt 0:01:30]} Rxd5 {[%emt 0:00:31]} 40. Bxd5 {[%emt 0:00:02]} Nf6 {[%emt 0:00:33]} 41. Ba2 {[%emt 0:43:35]} Ne6 {[%emt 0:41:34]} 42. Nh6 {[%emt 0:00:00]} Ke7 {[%emt 0:00:00]} 43. f4 {[%emt 0:00:00]} Nd7 {[%emt 0:00:00]} 44. Nf5+ {[%emt 0:00:00]} Kf6 {[%emt 0:00:00]} 45. Nd6 {[%emt 0:00:00]} Ndc5 {[%emt 0:00:00]} 46. Kf3 {[%emt 0:00:00]} Ke7 {[%emt 0:00:00]} 47. Nb5 {[%emt 0:00:00]} f5 {[%emt 0:00:00]} 48. Bb1 {[%emt 0:00:00]} Kf6 {[%emt 0:00:00]} 49. Ke2 {[%emt 0:00:00]} Ng7 {[%emt 0:00:00]} 50. Kd2 {[%emt 0:00:00]} Nh5 {[%emt 0:00:00]} 51. Kc3 {[%emt 0:00:00]} Ne6 {[%emt 0:00:00]} 52. Nd6 {[%emt 0:00:00]} Nhxf4 {[%emt 0:00:00]} 53. exf4 {[%emt 0:00:00]} Nxf4 {[%emt 0:00:00]} 54. Nxf5 {[%emt 0:00:00]} Ke5 {[%emt 0:00:00]} 55. Kc4 {[%emt 0:00:00]} Nd5 {[%emt 0:00:00]} 56. Ng3 {[%emt 0:00:00]} b6 {[%emt 0:00:00]} 57. Ne2 {[%emt 0:00:00]} Nc7 {[%emt 0:00:00]} 58. Bh7 {[%emt 0:00:00]} Kd6 {[%emt 0:00:00]} 59. Be4 {[%emt 0:00:00]} Ke5 {[%emt 0:00:00]} 60. Bg2 {[%emt 0:00:00]} Kd6 {[%emt 0:00:00]} 61. Nc3 {[%emt 0:00:00]} Ke5 {[%emt 0:00:00]} 62. Kb4 {[%emt 0:00:00]} Kd4 {[%emt 0:00:00]} 63. Na4 {[%emt 0:00:00]} Nd5+ {[%emt 0:00:00]} 64. Kb3 {[%emt 0:00:00]} b5 {[%emt 0:00:00]} 65. Nb2 {[%emt 0:00:00]} Ne3 {[%emt 0:00:00]} 66. Bh3 {[%emt 0:00:00]} Nc4 {[%emt 0:00:00]} 67. Nd1 {[%emt 0:00:00]} Kc5 {[%emt 0:00:00]} 68. Be6 {[%emt 0:00:00]} Na5+ {[%emt 0:00:00]} 69. Kc3 {[%emt 0:00:00]} b4+ {[%emt 0:00:00]} 70. Kd3 {[%emt 0:00:00]} Nc6 {[%emt 0:00:00]} 71. Nb2 {[%emt 0:00:00]} Na5 {[%emt 0:00:00]} 72. Na4+ {[%emt 0:00:00]} Kb5 {[%emt 0:00:00]} 73. Bd7+ {[%emt 0:00:00]} Nc6 {[%emt 0:00:00]} 74. Nb2 {[%emt 0:00:00]} Kc5 {[%emt 0:00:00]} 75. Ke4 {[%emt 0:00:00]} Na5 {[%emt 0:00:00]} 76. Nd3+ {[%emt 0:00:00]} Kc4 {[%emt 0:00:00]} 77. Ke3 {[%emt 0:03:02]} Kc3 {[%emt 0:00:00]} 78. Nc5 {[%emt 0:03:49]} b3 {[%emt 0:00:00]} 79. Bf5 {[%emt 0:01:41]} Nc4+ {[%emt 0:00:00]} 80. Ke2 {[%emt 0:01:38]} b2 {[%emt 0:00:00]} 81. Bh7 {[%emt 0:05:01]} Na3 {[%emt 0:00:00]} 82. Ne4+ {[%emt 0:01:08]} Kb3 {[%emt 0:00:00]} 83. Nd2+ {[%emt 0:00:11]} Ka2 {[%emt 0:00:00]} 84. Bg8+ {[%emt 0:00:55]} Ka1 {[%emt 0:00:00]} 85. Nb3+ {[%emt 0:00:59]} Ka2 {[%emt 0:00:00]} 86. Nd2+ {[%emt 0:01:25]} Ka1 {[%emt 0:00:00]} 87. Nb3+ {[%emt 0:00:52]} 1/2-1/2

[Event "Fagernes Chess GM-Swiss 2025"]
[Site "Fagernes"]
[Date "2025.04.16"]
[Round "5.22"]
[White "Skaar, Ben Samuel Groth"]
[Black "Oksendal, Martin"]
[Result "1/2-1/2"]
[Annotator "RC"]
[ECO "C01"]
[WhiteElo "2167"]
[BlackElo "2250"]
[PlyCount "59"]
[EventDate "2025.04.12"]
[EventCountry "NOR"]
[SourceTitle "playchess.com"]
[Source "ChessBase"]
[SourceQuality "1"]
[TimeControl "40/6000+30:2400+30"]

1. e4 {[%emt 0:03:47]} e6 {[%emt 0:00:25]} 2. d4 {[%emt 0:00:47]} d5 {[%emt 0:00:11]} 3. Nc3 {[%emt 0:00:06]} Nf6 {[%emt 0:00:06]} 4. exd5 {[%emt 0:00:07]} exd5 {[%emt 0:00:13]} 5. Bg5 {[%emt 0:00:05]} Be7 {[%emt 0:00:09]} 6. Bd3 {[%emt 0:00:12]} c6 {[%emt 0:01:24]} 7. Nge2 {[%emt 0:00:11]} O-O {[%emt 0:00:42]} 8. O-O {[%emt 0:00:07]} Ne4 {[%emt 0:26:23]} 9. Bxe7 {[%emt 0:06:43]} Qxe7 {[%emt 0:00:39]} 10. f3 {[%emt 0:01:54]} Nxc3 {[%emt 0:00:33]} 11. bxc3 {[%emt 0:00:23]} c5 {[%emt 0:06:27]} 12. dxc5 {[%emt 0:04:17]} Nd7 {[%emt 0:02:55]} 13. Kh1 {[%emt 0:03:40]} Nxc5 {[%emt 0:00:25]} 14. Re1 {[%emt 0:14:19]} Qf6 {[%emt 0:03:32]} 15. Qd2 {[%emt 0:01:13]} Be6 {[%emt 0:10:29]} 16. Rab1 {[%emt 0:15:21]} b6 {[%emt 0:03:29]} 17. Nd4 {[%emt 0:06:02]} Rac8 {[%emt 0:04:03]} 18. f4 {[%emt 0:17:29]} Bd7 {[%emt 0:02:48]} 19. Re5 {[%emt 0:00:41]} Na4 {[%emt 0:05:23]} 20. Rb3 {[%emt 0:11:04]} g6 {[%emt 0:11:07]} 21. Nf3 {[%emt 0:06:28]} Bg4 {[%emt 0:04:09]} 22. Nd4 {[%emt 0:01:59]} Rfe8 {[%emt 0:02:14]} 23. Bb5 {[%emt 0:08:02]} Bd7 {[%emt 0:02:23]} 24. Bxd7 {[%emt 0:02:03]} Rxe5 {[%emt 0:00:04]} 25. Bxc8 {[%emt 0:00:57]} Qxf4 {[%emt 0:00:17]} 26. Qd1 {[%emt 0:00:03]} Qf2 {[%emt 0:09:51]} 27. Nf3 {[%emt 0:02:52]} Re3 {[%emt 0:00:35]} 28. Ba6 {[%emt 0:03:00]} Nc5 {[%emt 0:01:19]} 29. Bb7 {[%emt 0:00:45]} Na4 {[%emt 0:00:02]} 30. Qg1 {[%emt 0:00:04]} 1/2-1/2